bitfinex/quotes_SOLUSD_20251019
["timestamp","ask_amount","ask_price","bid_price","bid_amount"]
[1760844683879,3.84043426,186.5,186.45,0.66]
[1760844684082,3.34043426,186.49,186.44,10.87647521]
[1760844684287,3.34043426,186.49,186.46,0.66]
[1760844685172,0.5,186.5,186.46,0.66]
[1760844685372,3.34043426,186.49,186.46,0.66]
[1760844687889,3.84043426,186.5,186.44,10.87647521]
[1760844688076,3.84043426,186.5,186.47,0.66]
[1760844688476,3.84043426,186.5,186.48,0.66]
[1760844688884,3.34043426,186.52,186.49,0.66]
[1760844689080,3.34043426,186.53,186.5,0.66]
[1760844689291,0.5,186.52,186.48,0.66]
[1760844689486,3.84043426,186.52,186.49,0.66]
[1760844690275,3.84043426,186.52,186.46,5.36304886]
[1760844690481,3.84043426,186.52,186.47,0.66]
[1760844690898,3.84043426,186.52,186.48,0.66]
[1760844691300,3.84043426,186.52,186.49,0.66]
[1760844694095,3.34043426,186.53,186.5,0.66]
[1760844694296,0.5,186.56,186.5,0.66]
[1760844694481,3.34043426,186.57,186.51,10.87647521]
[1760844694686,3.84043426,186.57,186.52,0.66]
[1760844694899,3.84043426,186.57,186.53,0.66]
[1760844695092,3.84043426,186.57,186.54,0.66]
[1760844695996,3.34043426,186.57,186.54,0.66]
[1760844696189,3.34043426,186.56,186.54,0.66]
[1760844696602,3.34043426,186.56,186.55,0.66]
[1760844697086,3.34043426,186.57,186.55,0.66]
[1760844698983,0.5,186.59,186.55,0.66]
[1760844699203,6.92454157,186.58,186.51,14.75307375]
[1760844699400,3.58410731,186.57,186.55,0.66]
[1760844699609,3.34043426,186.58,186.55,0.66]
[1760844699789,3.34043426,186.58,186.56,0.66]
[1760844700389,3.34043426,186.58,186.54,22.88]
[1760844700593,3.34043426,186.58,186.55,0.66]
[1760844700805,3.34043426,186.58,186.54,22.88]
[1760844700997,3.34043426,186.58,186.56,0.66]
[1760844701398,3.59533497,186.57,186.56,0.66]
[1760844702293,3.09533497,186.57,186.56,0.66]
[1760844703386,3.34043426,186.58,186.56,0.66]
[1760844705503,3.34043426,186.59,186.56,0.66]
[1760844707708,3.34043426,186.58,186.56,0.66]
[1760844707913,3.34043426,186.58,186.51,16.77424092]
[1760844708086,3.84043426,186.57,186.52,0.69]
[1760844708399,3.84043426,186.57,186.53,0.69]
[1760844708599,3.84043426,186.57,186.54,0.69]
[1760844709007,0.5,186.57,186.54,0.69]
[1760844709191,3.84043426,186.57,186.54,0.69]
[1760844710317,0.5,186.57,186.54,0.69]
[1760844711993,0.5,186.57,186.52,5.36125742]
[1760844712202,3.34043426,186.58,186.53,0.69]
[1760844712692,0.5,186.59,186.53,6.05098438]
[1760844713017,0.5,186.59,186.54,0.69]
[1760844713593,3.84043426,186.59,186.54,0.69]
[1760844713790,3.84043426,186.59,186.55,0.69]
[1760844713989,3.84043426,186.59,186.56,0.69]
[1760844714393,7.44235399,186.59,186.56,0.69]
[1760844714617,7.44235399,186.59,186.54,0.69]
[1760844714793,3.34043426,186.58,186.53,5.36098438]
[1760844714990,3.34043426,186.58,186.55,0.69]
[1760844715419,3.34043426,186.58,186.53,6.05098438]
[1760844715608,3.34043426,186.58,186.54,0.69]
[1760844715807,6.94205265,186.58,186.54,0.69]
[1760844716123,3.34043426,186.58,186.54,0.69]
[1760844716318,6.94205265,186.58,186.54,0.69]
[1760844716519,3.34043426,186.58,186.54,0.69]
[1760844716699,3.84043426,186.57,186.54,0.69]
[1760844717322,3.84043426,186.57,186.55,0.69]
[1760844717893,3.84043426,186.57,186.54,0.69]
[1760844718807,3.34043426,186.56,186.54,0.69]
[1760844720836,0.5,186.58,186.55,0.69]
[1760844721132,105.44043426,186.61,186.55,4.03043426]
[1760844721302,105.94043426,186.61,186.56,0.69]
[1760844722221,105.94043426,186.61,186.57,0.69]
[1760844722418,3.34043426,186.6,186.54,16.23725573]
[1760844722725,3.34043426,186.6,186.58,0.69]
[1760844723609,3.34043426,186.6,186.54,10.87647521]
[1760844723813,3.34043426,186.6,186.57,0.69]
[1760844724319,3.34043426,186.6,186.58,0.69]
[1760844724529,3.34043426,186.6,186.56,0.69]
[1760844724720,3.34043426,186.6,186.57,0.69]
[1760844727403,3.34043426,186.6,186.57,0.7]
[1760844728216,3.34043426,186.6,186.54,19.57760984]
[1760844728403,3.34043426,186.6,186.58,0.7]
[1760844729225,3.34043426,186.6,186.56,0.7]
[1760844729580,3.34043426,186.6,186.57,0.7]
[1760844729743,22.88,186.62,186.57,4.04043426]
[1760844730023,105.44043426,186.65,186.59,3.34043426]
[1760844730222,0.5,186.64,186.6,0.7]
[1760844730408,102.1,186.65,186.6,4.57633994]
[1760844730602,105.44043426,186.65,186.6,0.7]
[1760844730819,105.44043426,186.65,186.61,0.7]
[1760844731014,105.44043426,186.65,186.62,0.7]
[1760844731413,105.44043426,186.65,186.6,10.87647521]
[1760844731721,105.44043426,186.65,186.61,0.7]
[1760844732103,102.1,186.65,186.61,0.7]
[1760844732305,102.1,186.65,186.61,1.23587696]
[1760844732514,102.1,186.65,186.62,14.21690947]
[1760844732816,102.1,186.65,186.63,0.7]
[1760844733126,3.84043426,186.69,186.63,6.0579232]
[1760844733334,3.34043426,186.69,186.64,0.7]
[1760844734012,6.94386508,186.69,186.64,0.7]
[1760844734209,3.34043426,186.68,186.65,0.71]
[1760844736515,3.34043426,186.68,186.62,19.57534256]
[1760844736826,3.34043426,186.68,186.63,0.71]
[1760844738028,3.34043426,186.69,186.63,4.05043426]
[1760844738337,3.34043426,186.69,186.64,0.71]
[1760844739237,3.34043426,186.69,186.64,6.06789304]
[1760844739438,3.34043426,186.69,186.65,0.71]
[1760844740139,3.34043426,186.7,186.65,0.71]
[1760844740513,3.34043426,186.7,186.65,6.06756344]
[1760844740711,3.34043426,186.7,186.66,23.59]
[1760844740940,3.34043426,186.7,186.68,22.88]
[1760844741640,3.34043426,186.7,186.67,0.71]
[1760844742211,3.34043426,186.7,186.65,5.35756344]
[1760844742212,0.5,186.72,186.68,0.71]
[1760844742418,3.34043426,186.69,186.66,0.71]
[1760844742621,3.34043426,186.69,186.67,0.71]
[1760844743029,3.34043426,186.7,186.68,0.71]
[1760844747022,3.34043426,186.71,186.68,0.71]
[1760844747334,3.34043426,186.71,186.69,0.71]
[1760844748343,3.34043426,186.71,186.69,15.46267159]
[1760844749140,3.34043426,186.7,186.69,15.46267159]
[1760844749756,3.34043426,186.71,186.69,15.46267159]
[1760844750039,3.34043426,186.71,186.69,0.71]
[1760844751024,102.6,186.73,186.67,15.46267159]
[1760844751025,3.34043426,186.7,186.67,15.46267159]
[1760844751324,3.34043426,186.68,186.65,0.71]
[1760844751524,3.34043426,186.67,186.66,0.71]
[1760844751725,3.34043426,186.68,186.66,0.71]
[1760844751930,3.34043426,186.69,186.63,24.16125707]
[1760844752146,3.34043426,186.69,186.66,0.71]
[1760844752347,3.34043426,186.68,186.66,0.71]
[1760844752844,3.34043426,186.68,186.67,0.71]
[1760844753450,3.34043426,186.68,186.65,0.71]
[1760844753641,3.34043426,186.68,186.64,21.46657902]
[1760844753842,3.34043426,186.68,186.65,0.71]
[1760844754044,3.34043426,186.68,186.66,0.71]
[1760844755248,3.34043426,186.68,186.64,21.46657902]
[1760844755452,3.34043426,186.68,186.64,16.81867989]
[1760844755755,3.34043426,186.68,186.65,0.71]
[1760844755944,3.34043426,186.68,186.66,0.71]
[1760844757448,3.34043426,186.67,186.64,16.81867989]
[1760844757750,3.34043426,186.67,186.65,0.71]
[1760844758148,3.34043426,186.66,186.63,16.81867989]
[1760844758348,3.34043426,186.64,186.6,10.87647521]
[1760844758548,3.34043426,186.64,186.61,16.82041]
[1760844758748,3.34043426,186.64,186.62,0.71]
[1760844758936,0.5,186.69,186.6,0.71]
[1760844758937,3.34043426,186.63,186.6,0.71]
[1760844759132,3.34043426,186.64,186.61,0.71]
[1760844759433,3.34043426,186.65,186.61,0.71]
[1760844759641,0.5,186.69,186.62,11.41232345]
[1760844759846,0.5,186.69,186.63,0.71]
[1760844760050,3.34043426,186.68,186.63,0.71]
[1760844760253,3.84043426,186.69,186.63,12.12232345]
[1760844760443,3.84043426,186.69,186.64,0.71]
[1760844761147,3.34043426,186.68,186.63,16.77024609]
[1760844761343,3.34043426,186.68,186.65,0.71]
[1760844761546,3.34043426,186.68,186.63,11.41232345]
[1760844761743,3.34043426,186.68,186.66,0.71]
[1760844762145,3.84043426,186.69,186.66,0.71]
[1760844763038,3.34043426,186.68,186.66,0.71]
[1760844763239,3.34043426,186.68,186.64,0.71]
[1760844763439,0.5,186.67,186.65,0.67]
[1760844763657,3.34043426,186.68,186.65,0.67]
[1760844764054,102.1,186.7,186.61,3.87631122]
[1760844764055,3.84043426,186.67,186.61,10.87647521]
[1760844764353,3.84043426,186.67,186.63,0.67]
[1760844764552,3.84043426,186.67,186.64,0.67]
[1760844765535,3.34043426,186.66,186.62,0.67]
[1760844765752,3.34043426,186.66,186.61,21.46826632]
[1760844766054,3.34043426,186.66,186.63,0.67]
[1760844766962,3.34043426,186.64,186.6,0.67]
[1760844767255,0.5,186.65,186.58,16.78387135]
[1760844767256,3.34043426,186.62,186.58,16.78387135]
[1760844767457,3.34043426,186.61,186.58,0.67]
[1760844767649,3.84043426,186.61,186.58,0.67]
[1760844768954,3.84043426,186.61,186.56,22.14485617]
[1760844769269,3.84043426,186.61,186.57,0.67]
[1760844770656,0.5,186.61,186.57,0.67]
[1760844770954,3.34043426,186.61,186.58,0.67]
[1760844771859,3.34043426,186.6,186.56,21.47490532]
[1760844772362,3.34043426,186.6,186.57,0.67]
[1760844772855,3.34043426,186.61,186.57,0.67]
[1760844773154,7.44636239,186.64,186.57,9.37011048]
[1760844773346,7.44636239,186.64,186.58,4.27327297]
[1760844773347,3.84043426,186.64,186.58,4.27327297]
[1760844773550,7.44708039,186.64,186.59,0.67]
[1760844773749,3.34043426,186.63,186.6,0.67]
[1760844773944,0.5,186.62,186.6,0.67]
[1760844774353,3.84043426,186.62,186.6,0.67]
[1760844774763,3.84043426,186.63,186.6,0.67]
[1760844775750,3.34043426,186.62,186.6,0.67]
[1760844775946,3.34043426,186.62,186.58,4.27327297]
[1760844776146,3.34043426,186.62,186.59,0.67]
[1760844776666,3.84043426,186.63,186.6,0.67]
[1760844778547,3.34043426,186.62,186.6,0.67]
[1760844778745,3.34043426,186.62,186.59,5.35986322]
[1760844778955,3.34043426,186.62,186.59,6.02986322]
[1760844779356,3.34043426,186.62,186.59,5.35986322]
[1760844779556,3.34043426,186.62,186.6,0.67]
[1760844779965,3.34043426,186.64,186.6,0.67]
[1760844780344,3.84043426,186.64,186.61,0.67]
[1760844780643,3.34043426,186.63,186.61,0.67]
[1760844783553,3.34043426,186.64,186.61,0.67]
[1760844783945,3.34043426,186.63,186.61,0.67]
[1760844784672,3.34043426,186.62,186.61,0.67]
[1760844785762,3.34043426,186.63,186.61,0.67]
[1760844788284,3.60588758,186.66,186.57,22.88]
[1760844788285,3.84043426,186.62,186.59,0.71]
[1760844788459,3.34043426,186.61,186.59,0.71]
[1760844788973,3.34043426,186.6,186.58,3.60588758]
[1760844789177,3.34043426,186.6,186.58,4.31588758]
[1760844790080,3.34043426,186.6,186.58,3.60588758]
[1760844790380,3.34043426,186.59,186.56,16.82560258]
[1760844790557,3.34043426,186.59,186.57,0.71]
[1760844791075,3.34043426,186.59,186.57,4.31566711]
[1760844792053,3.34043426,186.58,186.57,3.60566711]
[1760844792257,3.34043426,186.58,186.52,27.22]
[1760844792258,3.34043426,186.58,186.52,35.92173099]
[1760844792576,3.34043426,186.58,186.56,0.71]
[1760844793074,3.34043426,186.58,186.55,11.58647521]
[1760844793276,3.34043426,186.58,186.55,10.87647521]
[1760844793476,3.34043426,186.58,186.56,0.71]
[1760844794585,3.34043426,186.58,186.56,0.65]
[1760844796383,4.10670586,186.61,186.56,0.65]
[1760844796559,3.34043426,186.6,186.57,0.65]
[1760844796763,3.84043426,186.61,186.57,0.65]
[1760844796963,0.5,186.61,186.57,11.52647521]
[1760844797275,0.5,186.61,186.58,0.65]
[1760844797583,0.5,186.61,186.59,0.65]
[1760844797892,3.34043426,186.6,186.57,10.87647521]
[1760844798063,3.34043426,186.58,186.56,0.65]
[1760844798383,3.34043426,186.57,186.56,11.52647521]
[1760844798562,3.34043426,186.57,186.56,0.65]
[1760844799078,3.34043426,186.58,186.55,0.65]
[1760844799279,3.84043426,186.58,186.55,0.65]
[1760844799772,3.84043426,186.58,186.54,16.11820013]
[1760844799980,3.34043426,186.57,186.55,0.65]
[1760844801170,3.34043426,186.56,186.52,0.65]
[1760844801480,3.34043426,186.55,186.53,16.76820013]
[1760844802780,3.34043426,186.55,186.51,0.65]
[1760844802985,3.34043426,186.54,186.52,16.76993229]
[1760844804072,3.34043426,186.55,186.52,16.76993229]
[1760844804274,3.34043426,186.54,186.52,16.11993229]
[1760844804482,3.34043426,186.55,186.52,16.11993229]
[1760844804666,3.34043426,186.55,186.52,0.65]
[1760844805585,0.5,186.56,186.52,0.65]
[1760844805768,26.22043426,186.58,186.52,3.99043426]
[1760844805970,26.22043426,186.58,186.53,0.65]
[1760844806279,26.72043426,186.58,186.53,0.65]
[1760844806488,26.72043426,186.58,186.54,0.65]
[1760844806673,26.72043426,186.58,186.55,0.65]
[1760844806875,3.34043426,186.57,186.53,0.65]
[1760844807187,3.84043426,186.56,186.53,0.65]
[1760844807380,3.34043426,186.55,186.53,0.65]
[1760844807585,3.84043426,186.56,186.53,0.65]
[1760844808587,3.84043426,186.56,186.48,5.36247905]
[1760844808588,3.34043426,186.55,186.52,0.65]
[1760844808778,0.5,186.54,186.52,0.65]
[1760844809482,0.5,186.54,186.53,0.65]
[1760844809681,3.34043426,186.55,186.53,0.65]
[1760844809882,0.5,186.54,186.53,0.65]
[1760844810070,3.34043426,186.55,186.53,0.65]
[1760844810272,3.84043426,186.55,186.53,0.65]
[1760844811691,3.84043426,186.55,186.52,0.65]
[1760844812191,3.84043426,186.55,186.49,5.36218867]
[1760844812397,3.84043426,186.55,186.5,0.65]
[1760844812593,3.34043426,186.51,186.47,0.65]
[1760844812905,3.34043426,186.54,186.48,0.65]
[1760844813074,0.5,186.56,186.5,8.70214092]
[1760844813268,0.5,186.56,186.51,3.99043426]
[1760844813469,3.84043426,186.56,186.52,0.65]
[1760844813670,3.84043426,186.56,186.53,0.65]
[1760844813883,3.84043426,186.56,186.54,0.65]
[1760844814582,3.34043426,186.56,186.54,0.65]
[1760844815077,3.84043426,186.55,186.52,0.65]
[1760844815282,3.34043426,186.54,186.5,0.65]
[1760844815486,0.5,186.53,186.51,0.65]
[1760844815988,3.34043426,186.52,186.46,16.23953017]
[1760844816170,3.34043426,186.52,186.48,0.65]
[1760844816370,3.34043426,186.52,186.46,16.23953017]
[1760844816570,3.34043426,186.52,186.49,0.65]
[1760844818093,3.34043426,186.52,186.5,0.65]
[1760844818704,3.34043426,186.53,186.5,0.65]
[1760844818877,3.34043426,186.54,186.47,3.34043426]
[1760844819197,0.5,186.53,186.48,0.65]
[1760844824104,3.84043426,186.53,186.48,0.65]
[1760844824280,0.5,186.53,186.48,0.65]
[1760844824480,3.34043426,186.54,186.48,0.65]
[1760844824705,0.5,186.53,186.48,0.65]
[1760844825200,3.84043426,186.53,186.48,0.65]
[1760844828591,0.5,186.53,186.48,0.65]
[1760844829304,0.5,186.53,186.48,6.01246962]
[1760844829495,3.34043426,186.54,186.49,0.72]
[1760844829697,0.5,186.53,186.49,0.72]
[1760844832502,3.84043426,186.54,186.49,0.72]
[1760844832702,0.5,186.55,186.49,6.08218085]
[1760844832906,0.5,186.55,186.5,4.06043426]
[1760844833411,0.5,186.55,186.51,0.72]
[1760844834310,3.84043426,186.55,186.51,0.72]
[1760844834809,3.34043426,186.54,186.49,5.36218085]
[1760844835016,3.84043426,186.53,186.49,0.72]
[1760844835197,3.34043426,186.52,186.49,0.72]
[1760844835395,0.5,186.51,186.47,0.72]
[1760844835714,3.84043426,186.51,186.48,0.72]
[1760844839504,3.84043426,186.51,186.47,0.72]
[1760844840322,3.84043426,186.51,186.48,0.72]
[1760844840814,3.84043426,186.51,186.47,0.72]
[1760844841021,3.84043426,186.51,186.48,0.72]
[1760844841596,3.84043426,186.51,186.46,5.36307089]
[1760844841901,3.84043426,186.51,186.47,0.72]
[1760844842299,3.84043426,186.51,186.48,0.72]
[1760844842815,3.34043426,186.5,186.46,0.72]
[1760844843197,3.34043426,186.5,186.44,8.70406388]
[1760844843518,3.34043426,186.5,186.47,0.72]
[1760844843692,3.34043426,186.5,186.48,0.72]
[1760844843892,3.34043426,186.49,186.45,0.72]
[1760844844304,3.34043426,186.49,186.46,0.72]
[1760844844525,3.34043426,186.49,186.43,42.46078679]
[1760844844526,3.34043426,186.49,186.43,39.12035253]
[1760844844706,0.5,186.48,186.44,0.72]
[1760844844897,3.34043426,186.48,186.45,0.72]
[1760844845217,3.84043426,186.48,186.45,0.72]
[1760844845414,3.34043426,186.48,186.45,0.72]
[1760844845614,3.84043426,186.48,186.45,0.72]
[1760844845925,3.34043426,186.48,186.45,0.72]
[1760844846098,3.84043426,186.48,186.45,0.72]
[1760844846421,3.34043426,186.48,186.45,0.72]
[1760844846623,3.84043426,186.48,186.45,0.72]
[1760844846807,3.34043426,186.48,186.45,0.72]
[1760844847123,3.84043426,186.48,186.45,0.72]
[1760844847326,3.34043426,186.48,186.45,0.72]
[1760844847530,3.84043426,186.48,186.45,0.72]
[1760844847821,3.34043426,186.48,186.45,0.72]
[1760844848021,3.84043426,186.48,186.45,0.72]
[1760844848222,3.34043426,186.48,186.45,0.72]
[1760844848422,3.84043426,186.48,186.45,0.72]
[1760844849226,3.34043426,186.49,186.45,0.72]
[1760844849411,0.5,186.48,186.45,0.72]
[1760844850211,3.84043426,186.48,186.45,0.72]
[1760844851732,3.34043426,186.47,186.45,0.72]
[1760844852541,3.34043426,186.47,186.44,0.66]
[1760844853730,0.5,186.46,186.43,0.66]
[1760844853905,3.84043426,186.46,186.43,0.66]
[1760844855317,3.34043426,186.44,186.41,0.66]
[1760844855525,3.34043426,186.43,186.41,0.66]
[1760844855934,3.34043426,186.43,186.4,0.2]
[1760844856109,102.6,186.47,186.4,0.2]
[1760844856110,3.84043426,186.42,186.4,0.2]
[1760844856432,3.34043426,186.41,186.4,0.2]
[1760844857515,3.34043426,186.42,186.4,0.2]
[1760844857714,0.5,186.41,186.4,0.2]
[1760844857928,3.84043426,186.43,186.4,0.2]
[1760844858121,3.34043426,186.44,186.4,0.2]
[1760844858323,0.5,186.43,186.41,0.66]
[1760844859928,3.34043426,186.45,186.42,0.66]
[1760844860130,0.5,186.44,186.43,0.66]
[1760844860334,3.84043426,186.46,186.43,0.66]
[1760844860831,3.34043426,186.44,186.4,0.86]
[1760844861019,0.5,186.43,186.41,0.66]
[1760844865523,0.5,186.43,186.42,0.66]
[1760844866428,0.5,186.43,186.41,0.66]
[1760844866938,3.84043426,186.43,186.41,0.66]
[1760844869339,3.84043426,186.43,186.4,0.2]
[1760844869526,3.34043426,186.42,186.4,0.2]
[1760844869727,3.34043426,186.42,186.4,0.86]
[1760844870434,3.34043426,186.42,186.4,0.2]
[1760844870624,3.34043426,186.43,186.4,0.86]
[1760844870826,3.34043426,186.43,186.4,0.2]
[1760844871337,3.34043426,186.43,186.41,0.66]
[1760844871538,3.34043426,186.44,186.42,0.66]
[1760844871833,0.5,186.43,186.42,0.66]
[1760844874920,3.84043426,186.46,186.42,0.66]
[1760844875123,0.5,186.46,186.42,0.66]
[1760844875345,3.84043426,186.46,186.42,0.66]
[1760844881250,102.1,186.47,186.42,9.36456973]
[1760844881553,102.1,186.47,186.44,3.34043426]
[1760844881736,102.1,186.47,186.45,0.66]
[1760844882747,102.1,186.47,186.46,0.66]
[1760844882946,3.84043426,186.49,186.46,0.66]
[1760844883131,3.84043426,186.49,186.47,0.66]
[1760844884532,3.34043426,186.48,186.44,0.66]
[1760844885631,3.34043426,186.49,186.45,0.66]
[1760844885943,0.5,186.48,186.45,0.66]
[1760844886149,3.34043426,186.49,186.46,0.66]
[1760844886650,3.84043426,186.5,186.46,0.66]
[1760844886867,3.84043426,186.5,186.47,0.66]
[1760844887345,7.44760132,186.5,186.47,0.66]
[1760844887543,3.84043426,186.5,186.47,0.66]
[1760844887745,7.44760132,186.5,186.47,0.66]
[1760844887950,3.84043426,186.5,186.47,0.66]
[1760844888245,7.44760132,186.5,186.47,0.66]
[1760844888441,3.84043426,186.5,186.47,0.66]
[1760844888647,7.44760132,186.5,186.44,12.31124614]
[1760844888849,3.84043426,186.5,186.45,0.66]
[1760844889034,7.44760132,186.5,186.45,0.66]
[1760844889235,3.84043426,186.5,186.45,0.66]
[1760844890032,7.45334112,186.5,186.45,0.66]
[1760844890352,3.84043426,186.5,186.45,0.66]
[1760844890555,7.45334112,186.5,186.45,0.66]
[1760844890847,3.84043426,186.5,186.45,0.66]
[1760844891034,7.45334112,186.5,186.45,0.66]
[1760844891235,3.84043426,186.5,186.45,0.66]
[1760844892041,7.45411384,186.5,186.45,0.66]
[1760844892241,3.84043426,186.5,186.45,0.66]
[1760844892442,7.45411384,186.5,186.45,0.66]
[1760844892748,3.84043426,186.5,186.45,0.66]
[1760844892946,7.45411384,186.5,186.45,0.66]
[1760844893144,3.84043426,186.5,186.45,0.66]
[1760844894144,3.84043426,186.5,186.45,6.02331818]
[1760844894443,3.84043426,186.5,186.46,0.66]
[1760844894836,3.84043426,186.5,186.47,0.66]
[1760844895451,3.34043426,186.49,186.47,0.66]
[1760844895643,6.95508835,186.49,186.47,0.66]
[1760844895953,3.34043426,186.49,186.47,0.66]
[1760844896253,7.45508835,186.49,186.47,0.66]
[1760844896443,3.84043426,186.49,186.47,0.66]
[1760844896944,7.45508835,186.49,186.47,0.66]
[1760844897149,3.84043426,186.49,186.47,0.66]
[1760844897444,3.34043426,186.49,186.47,0.66]
[1760844897651,6.95508835,186.49,186.47,0.66]
[1760844898039,3.34043426,186.49,186.47,0.66]
[1760844898640,3.84043426,186.49,186.47,0.66]
[1760844898860,3.34043426,186.49,186.47,0.66]
[1760844899154,3.84043426,186.49,186.47,0.66]
[1760844899855,3.34043426,186.49,186.46,0.66]
[1760844900156,3.34043426,186.49,186.47,0.66]
[1760844900454,3.84043426,186.5,186.47,0.66]
[1760844901640,7.45478563,186.5,186.47,0.66]
[1760844901854,3.84043426,186.5,186.47,0.66]
[1760844902143,7.45478563,186.5,186.47,0.66]
[1760844902341,7.45478563,186.5,186.45,5.36336684]
[1760844902342,0.5,186.5,186.48,0.66]
[1760844902548,3.61429755,186.51,186.48,0.66]
[1760844902746,3.61429755,186.51,186.48,6.02250335]
[1760844902947,102.6,186.52,186.49,0.66]
[1760844903157,102.1,186.52,186.49,0.66]
[1760844903458,105.94043426,186.56,186.5,3.34043426]
[1760844903650,3.61347697,186.55,186.51,0.66]
[1760844903852,4.11347697,186.54,186.5,3.34043426]
[1760844904040,0.5,186.54,186.52,0.66]
[1760844904240,0.5,186.55,186.52,0.66]
[1760844904555,4.11364949,186.55,186.53,0.66]
[1760844905153,3.61364949,186.55,186.52,0.66]
[1760844905358,6.95187047,186.55,186.52,0.66]
[1760844907744,3.61143621,186.55,186.5,8.70232965]
[1760844908056,3.61143621,186.55,186.51,0.66]
[1760844908635,6.95187047,186.55,186.52,0.66]
[1760844909053,3.34043426,186.54,186.52,0.66]
[1760844911137,3.34043426,186.55,186.52,0.66]
[1760844913366,102.1,186.56,186.53,0.72]
[1760844913547,105.44043426,186.56,186.53,0.72]
[1760844913952,102.1,186.56,186.53,0.72]
[1760844915449,22.88,186.59,186.53,9.42144661]
[1760844915645,3.34043426,186.6,186.54,4.06043426]
[1760844915847,3.34043426,186.6,186.55,0.72]
[1760844916969,3.34043426,186.59,186.55,0.72]
[1760844917975,3.34043426,186.6,186.55,0.72]
[1760844918369,3.34043426,186.61,186.55,9.42083351]
[1760844918563,3.34043426,186.61,186.56,0.72]
[1760844919170,3.34043426,186.61,186.57,0.72]
[1760844919976,3.34043426,186.61,186.58,0.72]
[1760844920466,3.34043426,186.59,186.58,0.72]
[1760844920782,22.88,186.46,186.4,0.2]
[1760844920956,3.34043426,186.41,186.4,0.2]
[1760844926875,22.88,186.45,186.4,0.2]
[1760844927081,3.34043426,186.41,186.4,0.2]
[1760844927862,3.34043426,186.41,186.4,0.92]
[1760844929477,3.34043426,186.42,186.4,0.92]
[1760844929694,3.34043426,186.42,186.41,0.72]
[1760844931189,3.34043426,186.44,186.41,0.72]
[1760844931363,3.34043426,186.44,186.4,0.2]
[1760844931564,3.34043426,186.45,186.41,27.92]
[1760844931783,22.88,186.5,186.42,0.72]
[1760844931784,3.34043426,186.46,186.42,0.72]
[1760844932161,3.34043426,186.46,186.43,0.72]
[1760844932481,3.34043426,186.46,186.44,0.72]
[1760844932974,3.34043426,186.47,186.45,0.72]
[1760844933181,3.34043426,186.47,186.46,0.72]
[1760844934291,102.1,186.51,186.46,0.72]
[1760844934292,3.34043426,186.48,186.46,0.72]
[1760844934779,3.34043426,186.49,186.47,0.72]
[1760844935084,3.34043426,186.48,186.45,0.72]
[1760844935473,3.34043426,186.47,186.45,0.72]
[1760844936082,22.88,186.51,186.45,0.72]
[1760844936269,3.34043426,186.47,186.45,0.72]
[1760844938788,3.34043426,186.48,186.45,0.72]
[1760844938992,3.34043426,186.47,186.45,0.72]
[1760844939863,3.34043426,186.46,186.45,0.72]
[1760844940800,3.34043426,186.47,186.45,0.72]
[1760844941991,3.34043426,186.47,186.45,27.92]
[1760844942490,3.34043426,186.46,186.45,27.2]
[1760844942867,3.34043426,186.46,186.4,0.2]
[1760844943068,3.34043426,186.44,186.41,27.2]
[1760844943281,3.34043426,186.44,186.42,0.72]
[1760844943593,3.34043426,186.44,186.43,27.2]
[1760844943796,3.34043426,186.45,186.43,27.2]
[1760844944100,3.34043426,186.47,186.44,0.7]
[1760844944399,3.34043426,186.47,186.43,27.2]
[1760844944573,3.34043426,186.47,186.45,0.7]